bitfinex/quotes_SOLUSD_20250919
["timestamp","ask_amount","ask_price","bid_price","bid_amount"]
[1758313229760,2.325632,237.31,237.29,13.59559401]
[1758313229961,2.325632,237.36,237.31,13.59559401]
[1758313230144,2.325632,237.36,237.32,0.72]
[1758313230338,32.6,237.39,237.33,0.72]
[1758313230560,2.325632,237.39,237.34,13.59559401]
[1758313230761,32.6,237.42,237.35,0.72]
[1758313230950,2.325632,237.38,237.35,0.72]
[1758313231261,2.325632,237.38,237.34,13.59559401]
[1758313231262,2.325632,237.39,237.37,4.21283228]
[1758313231460,2.325632,237.39,237.37,4.93283228]
[1758313231667,2.325632,237.39,237.37,4.21283228]
[1758313232163,2.325632,237.39,237.36,13.59559401]
[1758313232367,2.325632,237.37,237.36,13.59559401]
[1758313232570,2.325632,237.37,237.33,4.21336696]
[1758313232860,0.59,237.39,237.34,13.59559401]
[1758313233163,35.41238175,237.4,237.34,13.59559401]
[1758313233471,4.80257453,237.39,237.34,13.59559401]
[1758313233772,0.59,237.38,237.34,13.59559401]
[1758313234069,2.325632,237.35,237.34,13.59559401]
[1758313234662,2.325632,237.35,237.33,4.21336696]
[1758313234866,2.325632,237.34,237.3,13.59559401]
[1758313235067,2.325632,237.31,237.3,14.31559401]
[1758313235266,0.59,237.37,237.3,14.31559401]
[1758313235564,2.325632,237.31,237.3,14.31559401]
[1758313236269,2.325632,237.31,237.3,18.52966902]
[1758313237482,2.325632,237.31,237.28,4.21430956]
[1758313237675,31.79,237.35,237.29,13.59559401]
[1758313237845,2.325632,237.3,237.29,13.59559401]
[1758313238345,2.325632,237.3,237.29,14.31559401]
[1758313238547,2.325632,237.3,237.28,4.21430956]
[1758313238745,2.325632,237.29,237.27,4.21459495]
[1758313239049,2.325632,237.28,237.27,17.81018896]
[1758313239457,2.325632,237.28,237.27,13.59559401]
[1758313239660,2.325632,237.28,237.27,14.31559401]
[1758313240780,2.325632,237.28,237.27,18.53020184]
[1758313242771,31.2,237.34,237.27,18.53020184]
[1758313242950,31.79,237.37,237.28,14.31559401]
[1758313243252,2.325632,237.29,237.27,4.21460783]
[1758313243565,2.325632,237.3,237.28,14.31559401]
[1758313243770,2.325632,237.3,237.29,0.72]
[1758313244151,2.325632,237.3,237.29,4.9342526]
[1758313251958,2.325632,237.31,237.3,13.59559401]
[1758313252159,2.325632,237.33,237.3,14.31559401]
[1758313252386,2.325632,237.33,237.32,13.59559401]
[1758313252567,31.2,237.37,237.32,14.31559401]
[1758313252771,2.325632,237.35,237.34,13.59559401]
[1758313252974,2.325632,237.35,237.3,13.59559401]
[1758313253174,2.325632,237.35,237.32,13.59559401]
[1758313253575,2.325632,237.35,237.34,13.59559401]
[1758313253886,2.325632,237.35,237.34,14.31559401]
[1758313255186,133.4,237.48,237.34,14.31559401]
[1758313255187,2.325632,237.38,237.36,13.59559401]
[1758313255368,2.325632,237.38,237.37,0.72]
[1758313255778,2.325632,237.38,237.37,14.31559401]
[1758313256085,2.325632,237.38,237.37,14.25559401]
[1758313256383,0.59,237.47,237.38,13.59559401]
[1758313256590,4.90087292,237.49,237.39,0.66]
[1758313256759,2.325632,237.44,237.39,0.66]
[1758313256963,2.325632,237.44,237.4,13.59559401]
[1758313257185,2.325632,237.44,237.42,13.59559401]
[1758313257360,2.325632,237.43,237.42,13.59559401]
[1758313257564,2.325632,237.43,237.4,13.59559401]
[1758313257786,31.79,237.47,237.42,0.66]
[1758313258176,0.69,237.49,237.43,0.66]
[1758313258374,3.51158201,237.49,237.44,13.59559401]
[1758313258584,0.1,237.49,237.44,13.59559401]
[1758313258786,0.1,237.49,237.45,0.66]
[1758313258982,2.325632,237.46,237.45,14.25559401]
[1758313259183,2.325632,237.46,237.45,18.46700693]
[1758313259379,31.3,237.49,237.46,13.59559401]
[1758313259581,2.325632,237.47,237.46,13.59559401]
[1758313260391,2.325632,237.48,237.47,13.59559401]
[1758313260569,2.325632,237.48,237.45,13.59559401]
[1758313260888,2.325632,237.48,237.47,0.7]
[1758313261073,2.425632,237.49,237.48,17.80647492]
[1758313261280,2.425632,237.49,237.48,18.50647492]
[1758313262195,0.1,237.49,237.48,18.50647492]
[1758313262523,0.1,237.49,237.48,51.32647492]
[1758313264007,1e-08,237.49,237.48,54.07319501]
[1758313265204,2.325632,237.56,237.51,13.59559401]
[1758313265405,2.325632,237.56,237.53,13.59559401]
[1758313265613,0.1,237.58,237.54,0.7]
[1758313265788,0.1,237.58,237.53,13.59559401]
[1758313265789,2.325632,237.56,237.55,0.7]
[1758313266125,0.1,237.58,237.56,13.59559401]
[1758313266399,2.425632,237.58,237.56,14.29559401]
[1758313266591,0.1,237.58,237.57,14.29559401]
[1758313266789,2.425632,237.58,237.57,14.29559401]
[1758313267102,2.425632,237.58,237.57,13.59559401]
[1758313267399,0.1,237.58,237.57,13.59559401]
[1758313267592,2.425632,237.58,237.57,14.29559401]
[1758313268609,2.425632,237.58,237.57,17.80487969]
[1758313268919,2.425632,237.58,237.57,13.59559401]
[1758313269282,3.015632,237.58,237.57,13.59559401]
[1758313269600,0.69,237.58,237.57,13.59559401]
[1758313269800,2.425632,237.58,237.57,13.59559401]
[1758313270324,3.015632,237.58,237.54,33.26]
[1758313270518,0.69,237.58,237.55,13.59559401]
[1758313270682,2.325632,237.56,237.55,13.59559401]
[1758313270881,2.325632,237.56,237.53,16.95402623]
[1758313271113,2.325632,237.56,237.54,13.59559401]
[1758313271616,2.325632,237.55,237.54,13.59559401]
[1758313272912,0.1,237.58,237.54,13.59559401]
[1758313273116,2.325632,237.55,237.54,14.29559401]
[1758313273314,0.1,237.58,237.54,14.29559401]
[1758313273506,2.325632,237.55,237.54,14.29559401]
[1758313275214,2.325632,237.55,237.54,17.8054113]
[1758313275722,2.325632,237.55,237.54,13.59559401]
[1758313276786,34.115632,237.55,237.54,13.59559401]
[1758313277686,33.525632,237.55,237.54,13.59559401]
[1758313280095,33.525632,237.55,237.49,12.66276935]
[1758313280096,2.325632,237.55,237.49,12.66276935]
[1758313280300,31.79,237.55,237.5,13.59559401]
[1758313280508,2.325632,237.51,237.5,13.59559401]
[1758313280709,31.2,237.55,237.5,14.29559401]
[1758313280920,0.1,237.58,237.5,14.29559401]
[1758313280921,31.3,237.58,237.52,13.59559401]
[1758313281235,0.1,237.58,237.53,0.7]
[1758313281439,0.1,237.58,237.54,13.59559401]
[1758313281738,0.1,237.58,237.56,13.59559401]
[1758313282115,0.1,237.58,237.57,20.93051169]
[1758313284938,2.425632,237.58,237.57,20.93051169]
[1758313286222,2.425632,237.58,237.57,54.17051169]
[1758313286743,0.1,237.58,237.57,54.17051169]
[1758313290652,1.58444814,237.58,237.57,54.17051169]
[1758313290850,1.58444814,237.58,237.57,20.93051169]
[1758313291054,1.58444814,237.58,237.57,54.13051169]
[1758313292255,0.1,237.58,237.57,54.13051169]
[1758313296152,0.1,237.58,237.57,20.93051169]
[1758313296458,1.58444814,237.58,237.57,53.37051169]
[1758313297146,1.58444814,237.58,237.57,54.05051169]
[1758313297735,0.1,237.58,237.57,54.05051169]
[1758313299039,1.58444814,237.58,237.57,54.05051169]
[1758313303576,1.58444814,237.58,237.57,13.59559401]
[1758313303742,1.58444814,237.58,237.57,46.67559401]
[1758313305151,1.58444814,237.58,237.57,46.65559401]
[1758313305346,2.17444814,237.58,237.57,46.65559401]
[1758313305947,1.58444814,237.58,237.57,46.65559401]
[1758313306155,1.58444814,237.58,237.57,13.59559401]
[1758313306465,2.17444814,237.58,237.57,13.59559401]
[1758313306652,1.58444814,237.58,237.57,13.59559401]
[1758313309046,2.17444814,237.58,237.54,13.59559401]
[1758313309243,1.48444814,237.55,237.54,13.59559401]
[1758313315874,33.27444814,237.55,237.51,13.59559401]
[1758313316074,1.48444814,237.52,237.51,13.59559401]
[1758313316275,1.48444814,237.52,237.49,13.29808537]
[1758313316479,31.2,237.54,237.5,13.59559401]
[1758313316780,31.79,237.54,237.5,13.59559401]
[1758313317362,31.79,237.54,237.49,46.25808537]
[1758313317576,1.48444814,237.5,237.49,59.85367938]
[1758313317881,1.48444814,237.5,237.49,64.06431129]
[1758313321069,31.2,237.55,237.5,13.59559401]
[1758313321272,0.1,237.58,237.52,13.59559401]
[1758313321486,1.48444814,237.55,237.54,13.59559401]
[1758313321668,1.48444814,237.55,237.54,47.20559401]
[1758313321984,1.48444814,237.57,237.54,47.20559401]
[1758313322169,1.48444814,237.57,237.56,4.20946287]
[1758313322361,1.58444814,237.58,237.56,37.14946287]
[1758313322579,1.58444814,237.58,237.57,0.67]
[1758313323565,1.58444814,237.58,237.57,4.87928568]
[1758313324968,0.1,237.58,237.57,4.87928568]
[1758313325160,1.58444814,237.58,237.57,4.87928568]
[1758313325684,0.1,237.58,237.57,18.47487969]
[1758313328489,0.1,237.58,237.57,20.16267901]
[1758313329871,0.2,237.59,237.58,13.59559401]
[1758313330077,0.2,237.59,237.58,47.14559401]
[1758313330288,0.1,237.61,237.58,47.14559401]
[1758313330478,0.1,237.61,237.6,13.59559401]
[1758313330684,0.1,237.61,237.6,46.47559401]
[1758313330878,0.1,237.61,237.6,47.14559401]
[1758313331473,0.1,237.61,237.6,51.35434821]
[1758313332291,0.1,237.61,237.6,53.04193391]
[1758313337401,0.1,237.61,237.6,52.98193391]
[1758313346300,0.1,237.61,237.6,133.78193391]
[1758313353101,0.1,237.67,237.64,13.59559401]
[1758313353300,0.1,237.67,237.66,13.59559401]
[1758313353796,0.1,237.67,237.66,15.94268146]
[1758313354308,0.1,237.67,237.66,20.15037312]
[1758313354803,0.1,237.67,237.66,52.85037312]
[1758313355709,0.1,237.67,237.66,52.19037312]
[1758313355888,0.1,237.67,237.66,50.48328567]
[1758313356088,0.69,237.67,237.66,50.48328567]
[1758313356308,0.69,237.67,237.66,13.59559401]
[1758313356513,0.69,237.67,237.66,46.27559401]
[1758313357194,0.1,237.67,237.66,51.14328567]
[1758313357509,0.1,237.67,237.66,50.48328567]
[1758313359197,0.1,237.67,237.66,52.90163874]
[1758313359605,0.1,237.67,237.66,65.3530399]
[1758313360086,2.41835307,237.67,237.66,62.93468683]
[1758313362235,0.1,237.67,237.66,62.93468683]
[1758313366696,0.1,237.67,237.66,63.59468683]
[1758313367315,0.1,237.67,237.66,65.9130399]
[1758313368805,0.1,237.69,237.66,76.43226905]
[1758313368991,0.1,237.69,237.68,13.59559401]
[1758313369198,0.1,237.69,237.68,46.23559401]
[1758313369514,0.1,237.69,237.68,49.21394708]
[1758313369711,0.1,237.69,237.68,53.42128467]
[1758313373628,0.59,237.78,237.68,64.50252398]
[1758313373832,2.31835307,237.74,237.7,17.8025776]
[1758313374129,2.31835307,237.78,237.72,13.59559401]
[1758313374309,2.31835307,237.78,237.74,13.59559401]
[1758313374504,2.31835307,237.78,237.75,33.3]
[1758313374704,2.31835307,237.78,237.77,13.59559401]
[1758313374901,0.2,237.79,237.77,46.23559401]
[1758313375212,0.2,237.79,237.78,0.66]
[1758313375415,2.51835307,237.79,237.78,0.66]
[1758313375714,2.51835307,237.79,237.78,2.96835307]
[1758313375919,2.51835307,237.79,237.78,7.17392124]
[1758313376120,2.51835307,237.79,237.78,39.81392124]
[1758313376614,2.51835307,237.79,237.78,39.16392124]
[1758313377019,0.2,237.79,237.78,39.16392124]
[1758313377195,2.51835307,237.79,237.78,39.16392124]
[1758313377401,0.1,237.8,237.78,53.40951525]
[1758313377627,0.1,237.8,237.79,14.24559401]
[1758313377819,0.1,237.85,237.8,13.59559401]
[1758313378138,0.1,237.85,237.82,13.59559401]
[1758313378306,2.41835307,237.85,237.84,13.59559401]
[1758313378614,2.41835307,237.85,237.84,46.23559401]
[1758313379326,2.41835307,237.85,237.84,50.44010124]
[1758313380005,3.00835307,237.85,237.84,46.23559401]
[1758313380432,2.41835307,237.85,237.84,50.44010124]
[1758313381817,0.1,237.85,237.84,51.16010124]
[1758313382213,2.41835307,237.85,237.84,51.16010124]
[1758313382801,0.1,237.85,237.84,51.16010124]
[1758313384021,2.31835308,237.89,237.84,61.67136931]
[1758313384320,1e-08,237.89,237.86,13.59559401]
[1758313384532,1e-08,237.89,237.87,33.34]
[1758313384828,0.1,237.91,237.87,33.34]
[1758313384829,0.1,237.91,237.88,13.59559401]
[1758313385020,0.1,237.91,237.89,32.62]
[1758313385197,0.1,237.91,237.89,33.34]
[1758313385827,0.1,237.91,237.9,4.20344682]
[1758313386528,0.1,237.91,237.9,17.79904083]
[1758313386699,2.41835307,237.91,237.9,18.51904083]
[1758313387316,0.1,237.91,237.9,18.51904083]
[1758313387516,2.41835307,237.91,237.9,18.51904083]
[1758313388030,0.1,237.91,237.9,18.51904083]
[1758313388240,2.41835307,237.91,237.9,18.51904083]
[1758313389321,0.1,237.91,237.9,18.51904083]
[1758313392130,0.1,237.91,237.9,17.79904083]
[1758313393403,0.1,237.91,237.9,18.51904083]
[1758313394129,0.69,237.91,237.9,46.21559401]
[1758313394321,0.1,237.91,237.9,50.41904083]
[1758313394527,0.1,237.91,237.9,62.97515683]
[1758313395832,0.69,237.91,237.9,12.556116]
[1758313396029,0.69,237.91,237.89,13.59559401]
[1758313396328,2.31835307,237.9,237.89,50.41921753]
[1758313396735,2.31835307,237.9,237.89,46.21559401]
[1758313397312,2.31835307,237.9,237.89,13.59559401]
[1758313397736,0.69,237.91,237.89,13.59559401]
[1758313398031,2.31835307,237.9,237.89,13.59559401]
[1758313399316,2.31835307,237.9,237.89,17.79921753]
[1758313400941,0.1,237.91,237.89,17.79921753]
[1758313401238,2.31835307,237.9,237.89,17.79921753]
[1758313407937,1.48085387,237.9,237.89,17.79921753]
[1758313410539,1.48085387,237.9,237.88,32.6]
[1758313410540,1.48085387,237.9,237.88,36.80377604]
[1758313410947,1.48085387,237.89,237.88,36.80377604]
[1758313411148,1.48085387,237.89,237.88,50.39937005]
[1758313411734,1.48085387,237.89,237.86,1.68594971]
[1758313412047,0.1,237.91,237.87,13.59559401]
[1758313412234,0.69,237.91,237.87,13.59559401]
[1758313413132,1.48085387,237.88,237.87,13.59559401]
[1758313414131,1.48085387,237.88,237.87,17.79957097]
[1758313415547,0.1,237.91,237.87,29.01951337]
[1758313415747,1.48085387,237.88,237.87,28.30951337]
[1758313415937,1.48085387,237.88,237.87,73.55360331]
[1758313416336,1.48085387,237.88,237.87,74.26360331]
[1758313419262,0.1,237.91,237.87,74.26360331]
[1758313419569,1.48085387,237.89,237.88,0.71]
[1758313419925,1.48085387,237.89,237.88,13.35249142]
[1758313420361,1.48085387,237.89,237.88,31.15188566]
[1758313420731,1.48085387,237.89,237.88,18.50939424]
[1758313422857,1.48085387,237.89,237.88,52.79520184]
[1758313423534,1.48085387,237.89,237.88,50.39939424]
[1758313423854,1.48085387,237.89,237.88,51.10939424]
[1758313424353,0.1,237.91,237.89,13.59559401]
[1758313424541,0.1,237.91,237.9,32.6]
[1758313424851,0.1,237.91,237.9,33.31]
[1758313425164,0.1,237.91,237.9,32.6]
[1758313425657,1.58085387,237.91,237.9,32.6]
[1758313426552,0.1,237.91,237.9,50.39904083]
[1758313426755,1.58085387,237.91,237.9,51.10904083]
[1758313430355,1.58085387,237.91,237.9,18.50904083]
[1758313430558,1.58085387,237.91,237.9,51.10904083]
[1758313432464,1.58085387,237.91,237.9,18.50904083]
[1758313432666,1.58085387,237.91,237.9,51.08904083]
[1758313432969,1.58085387,237.91,237.9,63.92132329]
[1758313433972,1.58085387,237.91,237.9,31.34132329]
[1758313434175,1.58085387,237.91,237.9,63.92132329]
[1758313434544,1.58085387,237.91,237.9,30.63132329]
[1758313434842,1.58085387,237.91,237.9,63.21132329]
[1758313435253,1.58085387,237.91,237.9,63.92132329]
[1758313441470,1.58085387,237.91,237.9,31.34132329]
[1758313441774,1.58085387,237.91,237.9,63.92132329]
[1758313443273,1.58085387,237.91,237.9,31.34132329]
[1758313443575,1.58085387,237.91,237.9,63.92132329]
[1758313445366,1.58085387,237.91,237.9,31.34132329]
[1758313445561,1.58085387,237.91,237.9,63.92132329]
[1758313446977,0.1,237.91,237.9,63.92132329]
[1758313447188,1.58085387,237.91,237.9,63.92132329]
[1758313448573,1.58085387,237.91,237.9,76.5638147]
[1758313448983,1.58085387,237.91,237.9,63.92132329]
[1758313451975,1.48085387,237.96,237.91,13.59559401]
[1758313452176,1.48085387,237.94,237.93,13.59559401]
[1758313452363,1.48085387,237.94,237.93,46.89559401]
[1758313452564,1.48085387,237.94,237.91,13.59559401]
[1758313452880,0.59,237.96,237.92,34.26559449]
[1758313453083,31.2,237.97,237.92,34.98559449]
[1758313453382,31.79,237.97,237.92,34.98559449]
[1758313453964,1.48085387,237.93,237.92,52.78428197]
[1758313461570,2.07085387,237.93,237.91,17.798839]
[1758313461764,2.07085387,237.93,237.9,17.0357035]
[1758313461971,1.48085387,237.91,237.9,4.20342104]
[1758313464273,1.48085387,237.91,237.88,2.83392715]
[1758313464488,1.48085387,237.89,237.86,4.20415243]
[1758313464666,1.48085387,237.87,237.86,17.79974644]
[1758313466683,1.48085387,237.87,237.84,4.20439451]
[1758313466885,1.48085387,237.85,237.84,30.44514437]
[1758313467694,1.48085387,237.85,237.84,17.79998852]
[1758313467999,1.48085387,237.85,237.83,4.20467775]
[1758313468182,1.48085387,237.84,237.83,17.80027176]
[1758313469781,2.31499231,237.84,237.83,17.80027176]
[1758313470475,2.31499231,237.84,237.83,18.47027176]
[1758313474106,31.2,237.87,237.83,18.47027176]
[1758313474314,2.31499231,237.84,237.83,18.47027176]
[1758313474607,2.31499231,237.84,237.83,28.9819818]
[1758313480408,2.31499231,237.84,237.83,18.47027176]
[1758313480616,2.31499231,237.84,237.82,4.20485634]
[1758313480790,2.31499231,237.83,237.81,32.56]
[1758313480986,2.31499231,237.82,237.81,46.15559401]
[1758313481613,2.31499231,237.82,237.81,13.59559401]
[1758313481808,2.31499231,237.82,237.81,17.80056821]
[1758313484301,0.59,237.85,237.81,18.47056821]
[1758313484302,31.2,237.85,237.81,18.47056821]
[1758313484506,2.31499231,237.82,237.81,17.80056821]
[1758313485105,2.31499231,237.82,237.81,18.47056821]
[1758313489022,2.31499231,237.82,237.81,17.80056821]
[1758313490934,2.31499231,237.82,237.81,18.47056821]
[1758313491432,2.31499231,237.82,237.81,17.80056821]
[1758313492555,2.31499231,237.82,237.81,4.2049742]
[1758313493048,2.31499231,237.82,237.78,38.85242495]
[1758313493049,2.31499231,237.82,237.78,30.40947625]
[1758313493255,2.31499231,237.8,237.78,30.40947625]
[1758313495128,2.31499231,237.8,237.78,31.07947625]
[1758313497423,2.31499231,237.79,237.78,31.07947625]
[1758313500253,2.31499231,237.79,237.78,30.40947625]
[1758313500651,2.31499231,237.79,237.78,31.10947625]
[1758313502145,2.31499231,237.79,237.78,12.60847628]
[1758313502344,2.31499231,237.79,237.76,9.11027343]
[1758313502546,2.31499231,237.77,237.76,9.11027343]
[1758313502744,2.31499231,237.77,237.76,4.90576192]
[1758313503361,2.31499231,237.77,237.76,17.80742746]
[1758313504851,2.31499231,237.77,237.76,17.10742746]
[1758313505165,2.31499231,237.77,237.76,12.90166554]
[1758313505455,2.31499231,237.77,237.75,13.59559401]
[1758313505657,2.31499231,237.76,237.74,4.90611801]
[1758313505835,2.31499231,237.75,237.74,17.80171202]
[1758313506031,2.31499231,237.75,237.74,18.50171202]
[1758313507969,2.31499231,237.75,237.74,31.17606215]
[1758313509254,2.31499231,237.75,237.74,30.47606215]
[1758313509769,2.31499231,237.75,237.74,16.88046814]
[1758313510069,2.31499231,237.75,237.74,12.67435013]
[1758313510256,2.31499231,237.75,237.73,13.59559401]
[1758313510458,2.31499231,237.74,237.73,14.29559401]
[1758313512372,2.31499231,237.74,237.73,18.5020467]
[1758313513667,2.31499231,237.74,237.73,31.15413535]
[1758313521180,2.31499231,237.74,237.73,63.69413535]
[1758313523882,12.65208865,237.85,237.73,74.21026709]
[1758313524188,2.31499231,237.79,237.74,0.7]
[1758313524382,2.31499231,237.78,237.76,13.59559401]
[1758313524680,2.31499231,237.78,237.77,46.81559401]
[1758313524883,2.31499231,237.78,237.77,46.11559401]
[1758313525091,2.31499231,237.78,237.77,46.81559401]
[1758313525301,2.31499231,237.78,237.77,49.13058632]
[1758313525886,2.31499231,237.8,237.79,17.80098532]
[1758313526093,2.31499231,237.8,237.79,51.04098532]
[1758313526986,2.31499231,237.8,237.79,63.68987327]
[1758313528777,0.59,237.9,237.8,13.59559401]
[1758313528978,2.83060138,237.9,237.82,13.59559401]
[1758313529180,2.31499231,237.85,237.84,13.59559401]
[1758313529401,2.31499231,237.87,237.84,46.83559401]
[1758313529691,2.31499231,237.86,237.85,14.31559401]
[1758313529874,2.31499231,237.86,237.85,46.83559401]
[1758313530695,2.31499231,237.86,237.85,59.48128288]
[1758313530991,2.31499231,237.88,237.86,13.59559401]
[1758313531287,0.59,237.94,237.87,46.83559401]
[1758313531590,2.31499231,237.89,237.88,13.59559401]
[1758313531789,1.48061144,237.89,237.88,26.96021688]
[1758313532005,1.48061144,237.89,237.88,31.16401711]
[1758313533602,1.48061144,237.89,237.88,41.67351769]
[1758313535004,0.59,237.97,237.88,41.67351769]
[1758313535206,1.48061144,237.92,237.89,33.22]
[1758313535405,1.48061144,237.92,237.91,13.59559401]
[1758313535701,1.48061144,237.92,237.91,46.09559401]
[1758313535895,1.48061144,237.92,237.91,46.81559401]
[1758313536107,1.48061144,237.92,237.91,63.66082281]
[1758313536394,1.48061144,237.92,237.91,74.16899817]
[1758313536985,31.79,237.97,237.91,74.16899817]
[1758313537294,1.48061144,237.92,237.91,74.16899817]
[1758313542302,31.79,237.97,237.91,74.16899817]
[1758313542482,1.48061144,237.92,237.91,73.44899817]
[1758313543102,1.48061144,237.92,237.91,74.16899817]
[1758313543610,31.79,237.97,237.91,74.16899817]
[1758313543810,1.48061144,237.92,237.91,73.44899817]
[1758313544418,1.48061144,237.92,237.91,74.16899817]
[1758313545321,31.79,237.97,237.91,74.16899817]
[1758313545499,1.48061144,237.92,237.91,73.44899817]
[1758313545693,31.2,237.97,237.91,73.44899817]
[1758313545918,1.48061144,237.93,237.91,60.80703951]
[1758313546197,1.48061144,237.93,237.92,14.31559401]
[1758313546593,1.48061144,237.93,237.92,26.95701996]
[1758313547319,1.48061144,237.93,237.92,31.16011343]
[1758313548540,1.48061144,237.93,237.92,63.64011343]
[1758313551722,31.79,237.97,237.93,13.59559401]
[1758313551921,1.48061144,237.94,237.93,13.59559401]
[1758313552106,1.48061144,237.94,237.93,46.79559401]
[1758313552508,31.2,237.97,237.93,59.43701996]
[1758313552714,1.48061144,237.94,237.93,58.71701996]
[1758313553322,1.48061144,237.94,237.93,59.43701996]
[1758313553523,1.48061144,237.94,237.93,46.79559401]
[1758313553726,1.48061144,237.94,237.93,57.51095659]
[1758313554325,1.48061144,237.94,237.93,24.31095659]
[1758313554536,1.48061144,237.94,237.93,56.79095659]
[1758313555129,1.48061144,237.94,237.93,24.31095659]
[1758313555346,1.48061144,237.94,237.93,56.79095659]
[1758313558033,1.48061144,237.94,237.93,57.45095659]
[1758313568744,0.59,237.97,237.93,57.45095659]
[1758313568930,1.48061144,237.94,237.93,57.45095659]
[1758313569454,1.48061144,237.94,237.93,52.62403429]
[1758313570646,2.07061144,237.94,237.91,4.20309748]
[1758313570826,1.48061144,237.92,237.91,4.20309748]
[1758313571143,1.48061144,237.92,237.91,4.88309748]
[1758313573234,0.1,237.99,237.92,13.59559401]
[1758313573432,0.1,237.99,237.93,32.46]
[1758313573638,2.93549265,237.99,237.93,32.46]
[1758313573827,2.93549265,237.99,237.94,0.68]
[1758313574028,2.93549265,237.99,237.95,32.46]
[1758313574238,34.13549265,237.99,237.96,4.20238695]
[1758313574546,1.48061144,237.97,237.96,4.20238695]
[1758313575047,1.48061144,237.97,237.96,4.88238695]
[1758313577826,1.48061144,237.97,237.96,18.47798096]
[1758313578048,2.93670536,237.99,237.96,18.47798096]
[1758313578357,1.48061144,237.97,237.96,18.47798096]
[1758313578548,1.48061144,237.97,237.96,50.93798096]
[1758313579851,2.07061144,237.97,237.92,13.59559401]
[1758313580040,1.48061144,237.94,237.92,32.44]
[1758313580380,1.48061144,237.94,237.92,33.12]
[1758313580751,1.48061144,237.94,237.92,37.32309347]
[1758313583278,0.59,237.93,237.91,32.44]
[1758313583481,1.48061144,237.92,237.91,32.44]
[1758313585058,1.48061144,237.92,237.9,32.44]
[1758313585272,1.48061144,237.91,237.9,37.32344682]
[1758313585747,6.27390779,237.91,237.85,4.87433046]
[1758313585953,1.48061144,237.86,237.85,4.87433046]
[1758313586282,1.45138617,237.86,237.85,37.31433046]
[1758313587376,1.48061144,237.86,237.85,37.31433046]
[1758313589474,2.83931534,237.92,237.86,13.59559401]
[1758313589653,1.48061144,237.93,237.87,33.11]
[1758313589848,1.48061144,237.93,237.88,0.67]
[1758313590055,1.48061144,237.93,237.9,13.59559401]
[1758313590386,1.48061144,237.93,237.91,33.11]
[1758313590983,1.48061144,237.95,237.92,14.26559401]
[1758313591188,1.48061144,237.95,237.93,33.11]
[1758313591669,1.48061144,237.95,237.94,4.87274018]
[1758313593762,2.31219079,237.95,237.94,4.87274018]
[1758313593956,2.31219079,237.95,237.94,4.20274018]
[1758313594157,2.31219079,237.95,237.94,4.87274018]
[1758313595372,0.1,237.99,237.94,18.46833419]
[1758313595564,2.93931534,237.99,237.95,33.11]
[1758313595765,2.31219079,237.96,237.95,46.03559401]
[1758313596357,2.31219079,237.96,237.95,46.70559401]
[1758313597471,2.31219079,237.96,237.95,50.90815757]
[1758313597978,2.31219079,237.96,237.95,18.46815757]
[1758313598174,2.31219079,237.96,237.95,4.20256356]
[1758313598379,2.31219079,237.96,237.95,32.44]
[1758313598793,2.31219079,237.96,237.95,33.11]
[1758313599259,2.31219079,237.96,237.94,17.03106335]
[1758313599466,2.31219079,237.96,237.95,32.44]
[1758313600180,34.10219079,237.96,237.94,12.82832527]
[1758313600377,34.10219079,237.96,237.91,50.23885674]
[1758313600571,2.31219079,237.92,237.91,50.90885674]
[1758313600775,2.31219079,237.92,237.91,17.79885674]
[1758313600978,2.31219079,237.92,237.91,36.64326273]
[1758313602394,2.31219079,237.92,237.91,49.35142968]
[1758313603669,2.31219079,237.92,237.91,45.14816695]
[1758313604475,2.31219079,237.92,237.91,45.81816695]
[1758313604884,2.31219079,237.92,237.91,49.35143709]
[1758313608172,2.31219079,237.92,237.91,12.70816695]
[1758313608377,31.2,237.89,237.85,32.44]
[1758313608694,31.2,237.89,237.85,0.67]
[1758313609003,4.20309347,237.92,237.85,33.11]
[1758313609004,35.40309347,237.92,237.85,33.11]
[1758313609187,31.2,237.88,237.85,33.11]
[1758313609385,4.79339176,237.91,237.85,33.11]
[1758313609588,35.99339176,237.91,237.85,33.11]
[1758313609779,4.62438158,237.86,237.85,33.11]
[1758313609986,4.62438158,237.86,237.85,32.44]
[1758313611393,4.62438158,237.86,237.84,4.20450129]
[1758313611569,2.31219079,237.85,237.83,32.44]